Cogmind - Beta 10.2 @@@ ROGUE MODE // 2021.04.09 @ 18:50:26 Player: Gobbopathe Result: Destroyed by P-80 Master with Gamma Rifle Performance ------------- Evolutions (7) 3500 Regions Visited (23) 4600 Robots Destroyed (272) 1360 Value Destroyed (12716) 12716 Prototype IDs (47) 940 Alien Tech Used (2) 400 Bonus (6059) 6059 TOTAL SCORE: 29575 Bonus ------- High Alert Combat Kills 3169 Follower Combat Kills 2399 Network Hubs Disabled 200 Met Imprinter 300 Was Imprinted 300 Met Zhirov 300 Friendly Fire -609 Cogmind --------- Core Integrity 0/1300 Matter 300/300 Energy 395/395 System Corruption 91% Temperature Cool (0) Movement Treading (145) Location -3/Research Parts ------- > --- POWER (2) -------- Light Antimatter Reactor Reinforced Antimatter Reactor > --- PROPULSION (6) --- Biometal Medium Treads Biometal Medium Treads Advanced Heavy Treads Advanced Heavy Treads > --- UTILITY (8) ------ Advanced Heat Sink Experimental Coolant Injector Spectral Analyzer Advanced Signal Interpreter > --- WEAPON (5) ------- (None) > --- INVENTORY (4) ---- Light Particle Reactor Medium Treads Dimensional Node Initializer Peak State ------------ > --- POWER ------------ Micro Fission Core Zionite Heavy DM Reactor > --- PROPULSION ------- Armored Heavy Treads Advanced Heavy Treads Improved Heavy Siege Treads > --- UTILITY ---------- Advanced Heat Sink Advanced Heat Sink Large Storage Unit Spectral Analyzer Advanced Signal Interpreter Long-range Terrain Scanner Advanced Terrain Scan Processor Experimental Utility Shielding > --- WEAPON ----------- Gamma Rifle Gamma Rifle Quantum Rifle Kinetic Spear Enhanced Force Lance > --- INVENTORY -------- Micro Fission Core Particle Reactor Light Particle Reactor Spiked Medium Treads Improved Heavy Siege Treads Long-range Sensor Array Dimensional Node Initializer Transdimensional Reconstructor [Rating: 147] Favorites ----------- Power Micro Fission Core Engine Improved Deuterium Engine Power Core Micro Fission Core Reactor Zionite Heavy DM Reactor Propulsion Heavy Treads Treads Heavy Treads Leg Myomer Leg Wheel Armored Huge Wheel Hover Unit Improved Antigrav System Flight Unit Cooled Nuclear Pulse Thruster Utility Advanced Signal Interpreter Device Long-range Sensor Array Storage Large Storage Unit Processor Advanced Signal Interpreter Hackware System Shield Protection Layered Medium Armor Plating Weapon Kinetic Spear Energy Gun Advanced Beam Rifle Energy Cannon HERF Cannon Ballistic Gun Railgun Ballistic Cannon Linear Accelerator Launcher Mini Smartbomb Launcher Special Weapon Improved Remote Datajack Impact Weapon Power Maul Slashing Weapon Great Axe Piercing Weapon Kinetic Spear Build | -11 -10 -10 -9 -8 -7 -6 -6 -6 -6 -5 -5 -5 -5 -5 -5 -5 -5 -4 -4 -4 -4 -3 -3 ------- Run | Scr Mat Min Mat Mat Fac Fac Low Low Zio Pro Fac Was Fac Ext Cet Arc Hub Fac Upp Upp Zhi Pro Res Slots Evolved 14 | . . . 2 2 2 2 . . . . 2 . . . . . . 2 . . . . 2 Power 1 | . . . . . . . . . . . 1 . . . . . . . . . . . . Propulsion 4 | . . . . . . 1 . . . . 1 . . . . . . . . . . . 2 Utility 6 | . . . 1 1 2 1 . . . . . . . . . . . 1 . . . . . Weapon 3 | . . . 1 1 . . . . . . . . . . . . . 1 . . . . . Parts Attached 412 | 7 2 3 8 16 23 5 8 8 3 15 4 16 14 9 15 15 26 51 3 6 26 4 125 Power 46 | 1 . . 1 1 . 1 1 1 . 1 1 2 2 . 1 1 5 7 . 4 4 . 12 Engine 12 | 1 . . 1 1 . 1 1 1 . 1 . . . . . . 2 2 . . . . 1 Core 13 | . . . . . . . . . . . 1 . . . . . 1 3 . 4 2 . 2 Reactor 21 | . . . . . . . . . . . . 2 2 . 1 1 2 2 . . 2 . 9 Propulsion 72 | 2 . 1 2 . 7 2 . 1 . 5 1 3 . . 2 . 1 12 . . 7 . 26 Treads 48 | . . . . . 4 . . . . 5 1 3 . . 2 . 1 9 . . 3 . 20 Leg 6 | . . . . . . . . . . . . . . . . . . 3 . . . . 3 Wheel 9 | 2 . 1 2 . 1 2 . 1 . . . . . . . . . . . . . . . Hover 5 | . . . . . 2 . . . . . . . . . . . . . . . . . 3 Flight 4 | . . . . . . . . . . . . . . . . . . . . . 4 . . Utility 150 | 1 2 . 3 7 7 2 2 2 2 5 2 7 3 5 6 5 10 18 1 1 10 . 49 Device 92 | . . . 1 3 4 1 1 . 1 4 1 5 3 1 3 4 5 12 1 1 5 . 36 Storage 12 | 1 2 . 1 2 . . . . . . . . . . . . 2 1 . . 1 . 2 Processor 15 | . . . . 2 2 . . 1 1 1 1 . . . . . 1 1 . . . . 5 Hackware 2 | . . . . . 1 . . . . . . . . . . . . . . . 1 . . Protection 29 | . . . 1 . . 1 1 1 . . . 2 . 4 3 1 2 4 . . 3 . 6 Artifact . | . . . . . . . . . . . . . . . . . . . . . . . . Weapon 144 | 3 . 2 2 8 9 . 5 4 1 4 . 4 9 4 6 9 10 14 2 1 5 4 38 Energy Gun 46 | 1 . 1 2 5 2 . . . . 1 . 3 . 2 2 3 2 3 . . . . 19 Energy Cannon 10 | . . . . 1 . . . . . . . . . . . . 1 5 . . 1 . 2 Ballistic Gun 17 | 2 . 1 . 2 1 . . . . . . . . . 1 1 . 3 . . . 2 4 Ballistic Cannon 11 | . . . . . . . . . . . . . 1 1 . . . 2 . . . . 7 Launcher 14 | . . . . . . . 2 2 . 1 . 1 2 1 2 1 2 . . . . . . Special Weapon 3 | . . . . . . . . . . . . . 2 . . . . 1 . . . . . Impact Weapon 8 | . . . . . 1 . . . . . . . . . . . 1 . 2 1 2 . 1 Slashing Weapon 20 | . . . . . 4 . 2 2 . 2 . . 4 . 1 4 1 . . . . . . Piercing Weapon 15 | . . . . . 1 . 1 . 1 . . . . . . . 3 . . . 2 2 5 Special Melee Weapon . | . . . . . . . . . . . . . . . . . . . . . . . . Unidentified Prototypes 32 | . . . . 3 1 . . . 1 . . 1 3 1 4 . 5 1 . . 4 . 8 Parts Lost 140 | . . 6 . 1 7 . 3 2 . 10 . . 1 2 1 9 15 17 . 1 . . 65 Power 15 | . . 1 . . . . . 1 . 1 . . . . . 1 3 3 . . . . 5 Propulsion 26 | . . 3 . . 2 . . . . 2 . . . . . . 2 4 . . . . 13 Utility 43 | . . . . . 1 . 2 1 . 4 . . . 1 1 2 5 6 . 1 . . 19 Weapon 56 | . . 2 . 1 4 . 1 . . 3 . . 1 1 . 6 5 4 . . . . 28 Highest Loss Streak 11 | . . 5 . 1 4 . 3 2 . 10 . . 1 1 1 4 11 6 . 1 . . 11 Average Slot Usage (%) 88 | . 99 96 81 98 99 92 92 92 91 91 99 86 86 88 87 80 81 93 88 88 77 89 78 Engine 2 | . 14 13 9 9 7 6 5 5 6 5 5 5 1 . . . . 1 . . . . . Core 2 | . . . . . . . . . . . 5 1 . . . . 1 3 10 9 6 5 1 Reactor 3 | . . . . . . . . . . . . 3 9 11 11 9 7 4 . . 2 5 6 Treads 9 | . . . . . 5 7 . . . 3 22 15 11 11 11 11 10 15 10 10 9 10 17 Wheel 4 | . 28 25 14 18 8 5 13 13 13 9 . . . . . . . . . . . . . Device 12 | . . . 10 10 14 12 12 13 13 14 17 9 17 15 14 14 13 14 10 11 9 10 10 Storage 5 | . 27 28 9 9 7 6 6 6 6 6 5 5 5 5 5 5 5 5 5 5 4 5 3 Processor 13 | . . . . 9 14 13 13 12 17 19 17 17 17 15 11 11 11 15 15 13 10 10 13 Hackware 1 | . . . . . 7 6 6 6 . . . . . . . . . . . . . . . Protection 5 | . . . 9 7 . 6 6 5 6 4 . . . 2 7 5 4 5 10 10 11 15 4 Energy Gun 4 | . 14 14 18 26 10 . . . . . . 16 . 1 8 5 5 1 1 . . . 4 Energy Cannon 1 | . . . . . . . . . . . . . . . . . 1 4 6 5 4 5 1 Ballistic Gun 1 | . 14 14 11 8 5 . . . . . . . . . 3 3 4 . . . . . 2 Impact Weapon 2 | . . . . . 2 . . . . . . . . . . . . 4 6 9 8 10 1 Slashing Weapon 5 | . . . . . 7 20 17 19 20 19 17 . 14 6 . 3 2 . . . . . . Piercing Weapon 4 | . . . . . 3 6 6 6 6 4 . . . . . . 2 10 10 10 8 9 2 Naked Turns . | . . . . . . . . . . . . . . . . . . . . . . . . Heaviest Build 108 | 13 21 20 20 36 40 47 54 55 52 57 58 108 72 85 98 100 78 82 77 86 86 90 101 Greatest Support 215 | 32 32 32 26 26 56 56 40 40 40 84 104 140 140 140 160 160 160 140 140 140 140 140 215 Greatest Overweight (x) 11 | 2 . 1 1 1 2 1 1 1 1 11 . 1 . . . . . 1 . . 4 . 4 Average Overweight (x) . | . . . . . . . . 1 1 . . . . . . . . . . . . . . Largest Inventory Capacity 16 | 6 10 8 8 10 10 10 10 10 10 10 10 10 10 10 10 10 10 16 10 10 10 10 10 Average Capacity 9 | 5 7 7 7 8 10 10 10 10 10 10 10 10 10 10 10 10 10 10 10 10 9 10 9 Most Carried 10 | 2 5 6 4 9 10 10 10 10 10 10 10 10 10 10 10 10 10 10 10 10 10 10 10 Average Carried 9 | . 4 5 2 7 9 9 9 9 9 9 9 9 9 9 9 8 8 8 9 9 8 10 8 Final Capacity 10 | 6 8 4 8 10 10 10 10 10 10 10 10 10 10 10 10 10 10 10 10 10 10 10 4 Final Carried 10 | 2 5 4 4 9 10 10 10 10 10 10 10 9 10 10 10 8 6 10 10 10 10 10 3 Class Distribution -------------------- 26% | Assassin 26% | Scavenger-Mutant 19% | Scavenger-Assassin 9% | Skirmisher 5% | Scavenger-Tank 4% | Scavenger-Skirmisher 4% | Mutant 3% | Scavenger-Gunner Dominant Class ---------------- Mutant | -10/Materials Mutant | -10/Mines Skirmisher | -9/Materials Skirmisher | -8/Materials Skirmisher | -7/Factory Assassin | -6/Factory Assassin | -6/Lower Caves Assassin | -6/Lower Caves Assassin | -6/Zion Assassin | -5/Proximity Caves Scavenger-Mutant | -5/Factory Scavenger-Gunner | -5/Waste Scavenger-Mutant | -5/Factory Scavenger-Mutant | -5/Extension Scavenger-Skirmisher | -5/Cetus Scavenger-Mutant | -5/Archives Scavenger-Mutant | -5/Hub_04(d) Scavenger-Mutant | -4/Factory Scavenger-Assassin | -4/Upper Caves Scavenger-Assassin | -4/Upper Caves Assassin | -4/Zhirov Assassin | -3/Proximity Caves Scavenger-Assassin | -3/Research Resources | -11 -10 -10 -9 -8 -7 -6 -6 -6 -6 -5 -5 -5 -5 -5 -5 -5 -5 -4 -4 -4 -4 -3 -3 ----------- Run | Scr Mat Min Mat Mat Fac Fac Low Low Zio Pro Fac Was Fac Ext Cet Arc Hub Fac Upp Upp Zhi Pro Res Matter Collected 7578 | 170 135 209 . 388 323 58 65 165 13 153 73 216 187 390 269 237 523 624 133 165 330 130 2622 Remotely . | . . . . . . . . . . . . . . . . . . . . . . . . Salvage Created 14919 | . 135 236 . 933 816 311 405 170 . 955 . 500 415 312 607 416 993 1960 78 208 453 154 4862 Parts 683 | . 9 15 . 64 46 20 14 7 . 26 . 10 22 23 25 9 45 114 1 8 3 11 211 Haulers Intercepted 12 | . 1 . . 4 1 . . . . . . . . 1 . . 3 2 . . . . . Recyclers Shooed 7 | . . . . . 1 . . . . . . . . 2 . . . 1 . . . . 3 Parts Field Recycled . | . . . . . . . . . . . . . . . . . . . . . . . . Retrieved Matter . | . . . . . . . . . . . . . . . . . . . . . . . . Parts Self-Destructed 58 | . . . . . . . 3 4 . 29 . . . . . . . . . 10 2 10 . Prevented 10 | . . . . . . . . . . 5 . . . . . . . . . 3 1 1 . Kills | -11 -10 -10 -9 -8 -7 -6 -6 -6 -6 -5 -5 -5 -5 -5 -5 -5 -5 -4 -4 -4 -4 -3 -3 ------- Run | Scr Mat Min Mat Mat Fac Fac Low Low Zio Pro Fac Was Fac Ext Cet Arc Hub Fac Upp Upp Zhi Pro Res Combat Hostiles Destroyed 198 | . 2 5 . 9 11 4 4 8 . 12 . 2 5 4 10 4 12 32 . 1 . 4 69 Melee 95 | . . . . . 3 4 4 2 . 7 . . 5 2 . 3 4 31 . 1 . . 29 Guns 46 | . 1 4 . 9 8 . . . . . . 2 . . 3 1 3 . . . . 1 14 Cannons 20 | . . . . . . . . . . . . . . . 1 . . 1 . . . 3 15 AOE 25 | . 1 1 . . . . . 6 . 5 . . . 2 4 . 5 . . . . . 1 Classes Destroyed 25 | . 2 3 . 3 2 1 2 1 . 2 . 1 2 . . . 2 2 1 . . . 1 Worker 15 | . . . . 2 4 1 . . . . . . 1 1 . . 5 1 . . . . . Builder 9 | . . 1 . 2 2 . . . . . . . . 2 . . . 1 . . . . 1 Tunneler 3 | . . . . . . 1 . . . . . . 1 1 . . . . . . . . . Hauler 12 | . 1 . . 4 1 . . . . . . . . 1 . . 3 2 . . . . . Recycler 8 | . . 1 . 4 1 . . . . . . . . . . . . . . . . . 2 Minesweeper 2 | . . . . . . . . . . 1 . . . . . . . . . 1 . . . Mechanic 3 | . . . . . . . . . . . . . 1 . . . . . . . . . 2 Operator 5 | . . . . 1 . 1 . . . . . . . 1 . 2 . . . . . . . Watcher 16 | . . . . 5 1 1 . . . . . . . . 1 . 2 2 . . . . 4 Swarmer 52 | . . 3 . 7 3 . . 5 . 9 . . . . 3 . 1 8 . . . 4 9 Saboteur 1 | . . . . . . . . . . . . . . . . . . . . . . . 1 Grunt 45 | . 2 2 . 2 3 . . 1 . 1 . . . . 2 . 4 3 . . . . 25 Brawler 6 | . . . . . . . . 1 . . . . . . 1 . . . . . . . 4 Duelist 2 | . . . . . . . . . . . . . . . . . 1 . . . . . 1 Protector 2 | . . . . . . . . . . . . . . . . . 1 . . . . . 1 Sentry 24 | . . . . . 3 2 . 1 . 2 . . 2 2 . 4 . 3 . . . . 5 Hunter 13 | . . . . . . . . . . . . . 1 2 . . 1 4 . 1 . . 4 Programmer 37 | . . . . . 2 2 . . . . . . 2 . . . 1 11 . . . . 19 Behemoth 1 | . . . . . . . . . . . . . . . . . . 1 . . . . . Compactor 2 | . . . . . . . . . . . . 2 . . . . . . . . . . . Cetus Guard 4 | . . . . . . . . . . . . . . . 4 . . . . . . . . Lightning 3 | . . . . . . . . . . . . . . . . . 3 . . . . . . Z-Courier 1 | . . . . . . . . . . . . . . . . . 1 . . . . . . Z-Light 1 | . . . . . . . . . . . . . . . . . 1 . . . . . . Decomposer 8 | . . . . . . . 1 1 . . . . . . . . . . 3 3 . . . Samaritan 2 | . . . . . . . . . . . . . . . . . . . 1 1 . . . Tinkerer 1 | . . . . . . . . . . 1 . . . . . . . . . . . . . Thug 1 | . . . . . . . 1 . . . . . . . . . . . . . . . . Butcher 2 | . . . . . . . 2 . . . . . . . . . . . . . . . . Fireman 2 | . . . . . . . . . . . . . . . . . . 2 . . . . . Mutant 1 | . . . . . . . 1 . . . . . . . . . . . . . . . . Best Kill Streak 7 | . 3 4 . 5 6 2 4 4 . 5 . 1 4 4 6 2 5 6 . 1 . 4 7 Combat Bots Only 7 | . 2 3 . 3 5 1 4 4 . 5 . 1 2 2 6 1 5 6 . 1 . 4 7 Max Kills in Single Turn 4 | . 1 2 . 2 2 1 1 3 . 3 . 1 1 2 2 1 4 1 1 1 . 1 2 Gunslinging 1 | . . 1 . . . . . . . . . . . . . . . . . . . . . Exploded 3 | . 1 1 . . . . . 3 . 3 . . . 2 2 . 2 . . . . . 1 Melee 1 | . . . . . 1 1 1 1 . 1 . . 1 1 . 1 1 1 . 1 . . 1 Uniques/NPCs Destroyed . | . . . . . . . . . . . . . . . . . . . . . . . . Combat | -11 -10 -10 -9 -8 -7 -6 -6 -6 -6 -5 -5 -5 -5 -5 -5 -5 -5 -4 -4 -4 -4 -3 -3 -------- Run | Scr Mat Min Mat Mat Fac Fac Low Low Zio Pro Fac Was Fac Ext Cet Arc Hub Fac Upp Upp Zhi Pro Res Damage Taken 30385 | . . 653 28 361 952 556 266 512 . 1356 . 57 483 743 384 1558 2773 3552 . 462 . 383 15306 Core 3014 | . . 151 . 57 111 87 13 20 . 386 . . 64 56 . 226 202 282 . 76 . . 1283 Absorbed by Shields . | . . . . . . . . . . . . . . . . . . . . . . . . Core Remaining (%) 70 | 100 . 39 100 89 84 . . . . 40 . . . . . . 45 . . . . 68 . Volleys Fired 353 | . 6 20 . 52 41 . . 6 . 4 . 20 . 19 16 7 26 15 . . . 6 115 Largest 5 | . 2 2 . 4 4 . . 1 . 1 . 3 . 2 4 4 3 2 . . . 3 5 Hottest 337 | . 60 60 . 206 206 . . 43 . 43 . 225 . 135 227 212 176 188 . . . 153 337 Shots Fired 928 | . 12 40 . 206 127 . . 6 . 4 . 61 . 21 32 20 50 16 2 2 . 18 311 Gun 683 | . 12 40 . 206 127 . . . . . . 60 . 3 16 13 33 . . . . 11 162 Cannon 193 | . . . . . . . . . . . . . . . 7 7 6 13 2 2 . 7 149 Launcher 45 | . . . . . . . . 6 . 4 . 1 . 14 9 . 11 . . . . . . Special 7 | . . . . . . . . . . . . . . 4 . . . 3 . . . . . Kinetic 366 | . 6 20 . 51 41 . . . . . . . . . 14 14 16 11 . . . 11 182 Thermal 337 | . . . . 123 82 . . . . . . 60 . 1 2 2 17 2 . . . . 48 Explosive 31 | . . . . . . . . 6 . 4 . . . 10 . . 11 . . . . . . Electromagnetic 164 | . 6 20 . 32 4 . . . . . . 1 . 4 9 . 6 . 2 2 . 7 71 Phasic 23 | . . . . . . . . . . . . . . 2 7 4 . . . . . . 10 Robot Hit Streak 19 | . 7 7 . 18 5 . . 2 . 2 . 19 . 9 5 10 12 3 . . . 3 16 Robot Miss Streak 5 | . 2 3 . 5 5 . . 1 . 1 . 2 . 2 2 1 1 3 . . . 4 5 Penetration Max 1 | . . . . . . . . . . . . . . . . . . . . . . 1 1 Secondary Targets 6 | . . 1 . 1 3 . . . . . . . . . . . 1 . . . . . . Max Gunslinging Chain 1 | . . 1 . 1 1 . . . . . . . . . . . 1 . . . . . . Shots Hit Robots 1019 | . 8 22 . 100 90 24 20 7 . 50 . 47 19 24 20 36 57 105 4 12 11 4 359 Core Hits 502 | . 4 11 . 38 32 9 11 16 . 30 . 6 11 20 20 15 52 61 2 7 3 5 149 Critical Hits 30 | . . . . . . 1 1 . . 2 . . . 1 . 3 2 4 . 1 1 1 13 Critical Kills 13 | . . . . . . . . . . 2 . . . 1 . . 1 3 . . . 1 5 Critical Parts Destroyed 14 | . . . . . . . 1 . . . . . . . . 2 1 1 . 1 . . 8 Melee Attacks 707 | . . . . . 36 46 23 9 . 81 15 . 33 11 3 21 26 122 6 19 14 1 241 Impact 148 | . . . . . 8 . . . . . . . . . . . . 10 2 1 3 . 124 Slashing 227 | . . . . . 24 40 14 7 . 45 15 . 33 11 3 21 14 . . . . . . Piercing 332 | . . . . . 4 6 9 2 . 36 . . . . . . 12 112 4 18 11 1 117 Sneak Attacks 47 | . . . . . 2 4 2 1 . 3 . . 3 2 . 2 7 6 4 7 . . 4 Combat Hostiles 1 | . . . . . . . . . . . . . . . . . . 1 . . . . . Follow-up Attacks 72 | . . . . . 10 8 5 2 . 18 . . 3 . . . 1 14 . 1 2 . 8 Damage Inflicted 42348 | . 130 304 . 1658 2295 1294 1035 1114 . 3332 . 1189 980 1724 1146 1426 4408 4877 491 945 1333 191 12476 Guns 8471 | . 84 283 . 1581 1303 . . . . . . 1168 . 90 260 350 607 . . . . 93 2652 Cannons 4232 | . . . . . . . . . . . . . . . 69 190 163 471 . . . 98 3241 Explosions 6011 | . 46 21 . 77 . . . 895 . 543 . 21 . 1060 817 . 2367 . . . . . 164 Melee 23570 | . . . . . 992 1294 1035 219 . 2789 . . 980 574 . 878 1271 4406 491 945 1333 . 6363 Ramming 64 | . . . . . . . . . . . . . . . . 8 . . . . . . 56 Kinetic 5740 | . 29 133 . 259 316 . . . . . . . . . 124 351 315 404 . . . 93 3716 Thermal 4917 | . 46 21 . 1054 955 . . . . . . 1168 . 24 337 57 292 67 . . . . 896 Explosive 4333 | . . . . . . . . 895 . 543 . . . 839 . . 1892 . . . . . 164 Electromagnetic 3209 | . 55 150 . 345 32 . . . . . . 21 . 221 520 . 638 . . . . 98 1129 Impact 3570 | . . . . . 254 . . . . . . . . . . . . 107 . . 260 . 2949 Slashing 7175 | . . . . . 682 1246 844 160 . 996 . . 980 574 . 878 815 . . . . . . Piercing 12825 | . . . . . 56 48 191 59 . 1793 . . . . . . 456 4299 491 945 1073 . 3414 Phasic 515 | . . . . . . . . . . . . . . 66 165 132 . . . . . . 152 Highest Corruption 91 | . . . . . 3 1 1 4 4 . . 11 12 12 12 12 39 12 12 12 12 12 91 Average Corruption 14 | . . . . . 1 1 1 1 4 . . 6 11 12 12 12 16 7 12 12 12 12 34 Corruption Purged . | . . . . . . . . . . . . . . . . . . . . . . . . Effects 842 | . . . . . 9 . 1 6 1 . . 12 52 26 16 24 57 48 60 57 20 46 407 Message Errors 124 | . . . . . 6 . 1 2 1 . . 1 9 4 2 8 9 9 11 8 4 10 39 Matter Fused 120 | . . . . . 1 . . 1 . . . 3 15 1 3 3 10 8 11 16 6 6 36 Heat Flow Errors 53 | . . . . . . . . . . . . 1 9 2 3 2 . 8 3 2 . 3 20 Energy Discharges 65 | . . . . . 2 . . . . . . . 3 3 . 2 7 5 9 7 5 8 14 Parts Rejected 5 | . . . . . . . . . . . . . . . . 1 . 1 . 1 . . 2 Data Loss (minor) 67 | . . . . . . . . 1 . . . 2 3 6 5 2 2 6 10 8 . 4 18 Data Loss (major) 17 | . . . . . . . . . . . . . 1 1 1 1 1 1 1 . 3 1 6 Misfires 16 | . . . . . . . . . . . . 1 . 1 . . 4 . 2 2 . 1 5 Alerts 15 | . . . . . . . . . . . . . 3 1 . . 2 1 4 2 . 2 . Misdirections 86 | . . . . . . . . . . . . 1 5 2 1 1 10 1 8 9 2 8 38 Targeting Errors 250 | . . . . . . . . 2 . . . 3 4 5 . 4 11 8 1 2 . 2 208 Weapon Failures 24 | . . . . . . . . . . . . . . . 1 . 1 . . . . 1 21 Overload Shots . | . . . . . . . . . . . . . . . . . . . . . . . . Overflow Damage 3640 | . . 1 . . 258 287 197 108 . 522 . . 87 . 8 86 167 497 206 162 451 . 603 Projectiles 303 | . . . . . . . . . . . . . . . . . 23 36 . . 66 . 178 Explosions 169 | . . 1 . . . . . . . 47 . . . . 8 . 36 . . . . . 77 Melee 3168 | . . . . . 258 287 197 108 . 475 . . 87 . . 86 108 461 206 162 385 . 348 Knockbacks 39 | . . . . . . . . . . . . . . . . . . 4 . . . . 35 Impact 17 | . . . . . . . . . . . . . . . . . . 1 . . . . 16 Kinetic 16 | . . . . . . . . . . . . . . . . . . 2 . . . . 14 Secondary 6 | . . . . . . . . . . . . . . . . . . 1 . . . . 5 Self-Inflicted Damage 485 | . . . . 74 . . . 100 . 48 . 20 . 16 . . 106 . . . . . 121 Shots 8 | . . . . 1 . . . 2 . 1 . 1 . 1 . . 1 . . . . . 1 Rammed 18 | . . . . . . . . . . . . . . . . 1 . . . . . . 17 Targets Rammed 19 | . . . . . . . . . . . . . . . . 1 . . . . . . 18 Kicked . | . . . . . . . . . . . . . . . . . . . . . . . . Crushed 1 | . . . . . . . . . . . . . . . . . . . . . . . 1 Highest Temperature 682 | . . 30 . 424 199 . . 5 . . . 437 256 168 300 682 501 239 222 242 . 478 543 Average Temperature 142 | . . 13 . 137 101 . . 3 . . . 163 84 51 60 174 148 99 60 68 . 167 181 Received Heat Transfer 3120 | . . 106 9 54 105 81 36 63 . 203 . . 99 132 27 288 219 156 . . . . 1542 Effects 72 | . . . . 4 . . . . . . . 6 . . 1 6 5 . . . . 8 42 Shutdowns 18 | . . . . . . . . . . . . 2 . . . . 1 . . . . 4 11 Energy Bleed 11 | . . . . 3 . . . . . . . . . . 1 . . . . . . 1 6 Interference 17 | . . . . 1 . . . . . . . 3 . . . . 3 . . . . . 10 Matter Decay 7 | . . . . . . . . . . . . . . . . . . . . . . . 7 Short Circuit 5 | . . . . . . . . . . . . 1 . . . 1 . . . . . . 3 Damage (minor) 6 | . . . . . . . . . . . . . . . . . 1 . . . . 1 4 Damage (major) 8 | . . . . . . . . . . . . . . . . 5 . . . . . 2 1 Siege Activations . | . . . . . . . . . . . . . . . . . . . . . . . . Robots Corrupted 4 | . . . . . . . . . . . . . . . 2 . . . . . . . 2 Combat Hostiles 4 | . . . . . . . . . . . . . . . 2 . . . . . . . 2 Parts Fried 23 | . . . . 1 . . . . . . . . . . 4 . 2 . . . 2 . 14 Impact Corruptions 35 | . . . . . 4 . . . . . . . . . . . . . . . 8 . 23 Robots Melted . | . . . . . . . . . . . . . . . . . . . . . . . . Combat Hostiles . | . . . . . . . . . . . . . . . . . . . . . . . . Parts Melted 10 | . . . . 1 3 . . . . . . . . . . . 3 2 . . . . 1 Heat Transferred 7616 | . 50 50 . 2098 1702 . . . . . . 1850 . 37 224 74 370 75 . . . . 1086 Parts Sabotaged . | . . . . . . . . . . . . . . . . . . . . . . . . Parts Stolen . | . . . . . . . . . . . . . . . . . . . . . . . . Parts Stripped . | . . . . . . . . . . . . . . . . . . . . . . . . Power Chain Reactions 4 | . 1 1 . . . . . . . . . . . 1 1 . . . . . . . . Missiles Intercepted . | . . . . . . . . . . . . . . . . . . . . . . . . Alert | -11 -10 -10 -9 -8 -7 -6 -6 -6 -6 -5 -5 -5 -5 -5 -5 -5 -5 -4 -4 -4 -4 -3 -3 ------- Run | Scr Mat Min Mat Mat Fac Fac Low Low Zio Pro Fac Was Fac Ext Cet Arc Hub Fac Upp Upp Zhi Pro Res Peak Influence 1357 | . 77 165 57 215 696 345 . . . . 442 94 470 625 553 320 1006 824 . . . . 1357 Initial 406 | . . 30 40 24 42 233 . . . . 371 84 51 179 275 221 35 406 . . . . 60 Average 468 | . 39 102 44 98 500 237 . . . . 412 81 277 358 482 258 473 543 . . . . 724 Maximum Alert Level 4 | . . . . 1 2 1 . . . . 2 . 2 2 2 1 3 3 . . . . 4 Low Security (%) 22 | 100 100 100 100 98 11 29 . . . . . 100 35 36 . 13 28 . . . . . 3 Level 1 19 | . . . . 1 . 70 . . . . 31 . 30 6 32 86 26 19 . . . . 13 Level 2 41 | . . . . . 88 . . . . . 68 . 34 57 67 . 7 66 . . . . 38 Level 3 9 | . . . . . . . . . . . . . . . . . 36 14 . . . . 19 Level 4 7 | . . . . . . . . . . . . . . . . . . . . . . . 25 Level 5 . | . . . . . . . . . . . . . . . . . . . . . . . . High Security . | . . . . . . . . . . . . . . . . . . . . . . . . Max Security . | . . . . . . . . . . . . . . . . . . . . . . . . Squads Dispatched 54 | . 1 . 1 . 8 4 . 1 . . . . 3 2 . . 6 5 . . . . 23 Investigation 7 | . . . . . 2 1 . . . . . . 1 . . . 1 . . . . . 2 Extermination 22 | . . . . . 3 3 . . . . . . 2 . . . 1 5 . . . . 8 Reinforcement 9 | . 1 . 1 . . . . . . . . . . 2 . . 3 . . . . . 2 Assault 7 | . . . . . . . . 1 . . . . . . . . 1 . . . . . 5 Garrison 9 | . . . . . 3 . . . . . . . . . . . . . . . . . 6 Intercept . | . . . . . . . . . . . . . . . . . . . . . . . . Construction Impeded 2 | . . . . . . . . . . . . . . 1 . . . . . . . . 1 Haulers Reinforced 3 | . . . . . . . . . . . . . . . . . 2 . . . . . 1 Stealth | -11 -10 -10 -9 -8 -7 -6 -6 -6 -6 -5 -5 -5 -5 -5 -5 -5 -5 -4 -4 -4 -4 -3 -3 --------- Run | Scr Mat Min Mat Mat Fac Fac Low Low Zio Pro Fac Was Fac Ext Cet Arc Hub Fac Upp Upp Zhi Pro Res Distress Signals 18 | . . . . 3 . 2 . . . . . . . 2 1 . 3 3 . . . . 4 Communications Jammed . | . . . . . . . . . . . . . . . . . . . . . . . . Distress Signals . | . . . . . . . . . . . . . . . . . . . . . . . . Times Spotted 396 | . 3 14 6 21 23 12 4 10 . 24 . 5 15 21 12 9 42 43 . 3 . 4 125 Peak Tracking Total 15 | . 2 9 5 4 5 5 4 6 . 15 . 1 5 5 5 1 9 5 . 2 . 4 7 Tactical Retreats 23 | . . . . 1 1 5 . . . 1 . . 1 . . . 4 2 . . . . 8 Traps | -11 -10 -10 -9 -8 -7 -6 -6 -6 -6 -5 -5 -5 -5 -5 -5 -5 -5 -4 -4 -4 -4 -3 -3 ------- Run | Scr Mat Min Mat Mat Fac Fac Low Low Zio Pro Fac Was Fac Ext Cet Arc Hub Fac Upp Upp Zhi Pro Res Traps Triggered 8 | . . . . . . 1 . . . . 1 . 2 . . . . 1 . 1 . . 2 Indirectly . | . . . . . . . . . . . . . . . . . . . . . . . . Trap Hack Attempts . | . . . . . . . . . . . . . . . . . . . . . . . . Triggered . | . . . . . . . . . . . . . . . . . . . . . . . . Disarmed . | . . . . . . . . . . . . . . . . . . . . . . . . Reprogrammed . | . . . . . . . . . . . . . . . . . . . . . . . . Reused . | . . . . . . . . . . . . . . . . . . . . . . . . Traps Extracted . | . . . . . . . . . . . . . . . . . . . . . . . . Installed . | . . . . . . . . . . . . . . . . . . . . . . . . Triggered 4 | . . . . . . . 2 . . . . . . . . . . . . 2 . . . Machines | -11 -10 -10 -9 -8 -7 -6 -6 -6 -6 -5 -5 -5 -5 -5 -5 -5 -5 -4 -4 -4 -4 -3 -3 ---------- Run | Scr Mat Min Mat Mat Fac Fac Low Low Zio Pro Fac Was Fac Ext Cet Arc Hub Fac Upp Upp Zhi Pro Res Machines Disabled 42 | . 1 1 . 2 . . . . . 7 . . . 6 2 2 13 . . 1 . . 7 Max in Single Turn 9 | . 1 1 . 2 . . . . . 1 . . . 1 1 1 9 . . 1 . . 1 Garrison Access 3 | . . . . . . 1 . . . . . . . . . . 1 . . . . . 1 Network Hub 1 | . . . . . . . . . . . . . . . . . 1 . . . . . . Machines Sabotaged . | . . . . . . . . . . . . . . . . . . . . . . . . Garrisons Compromised . | . . . . . . . . . . . . . . . . . . . . . . . . Overloaded Fab Kills . | . . . . . . . . . . . . . . . . . . . . . . . . Fab Network Shutdowns 2 | . . . . . 1 . . . . . . . 1 . . . . . . . . . . Hacking | -11 -10 -10 -9 -8 -7 -6 -6 -6 -6 -5 -5 -5 -5 -5 -5 -5 -5 -4 -4 -4 -4 -3 -3 --------- Run | Scr Mat Min Mat Mat Fac Fac Low Low Zio Pro Fac Was Fac Ext Cet Arc Hub Fac Upp Upp Zhi Pro Res Machines Accessed 53 | . 2 . 1 5 11 8 . . . . 1 . 5 . . . 1 4 1 1 8 . 5 Terminals 18 | . 2 . . 4 6 6 . . . . . . . . . . . . . . . . . Fabricators 6 | . . . . . 2 . . . . . . . 3 . . . . 1 . . . . . Repair Stations 5 | . . . 1 . . 1 . . . . . . 1 . . . . 1 . . . . 1 Recycling Units 1 | . . . . . . . . . . . . . . . . . . . . . . . 1 Scanalyzers 8 | . . . . 1 2 . . . . . 1 . . . . . . 2 . . . . 2 Garrison Access 5 | . . . . . 1 1 . . . . . . 1 . . . 1 . . . . . 1 Total Hacks 202 | . 5 . 2 19 53 23 . . . . 4 . 10 . . . 1 21 1 1 44 . 18 Successful 134 | . 2 . 2 15 34 11 . . . . 2 . 2 . . . 1 10 1 1 44 . 9 Failed 68 | . 3 . . 4 19 12 . . . . 2 . 8 . . . . 11 . . . . 9 Catastrophic 10 | . 1 . . . 4 3 . . . . . . 1 . . . . . . . . . 1 Database Lockouts . | . . . . . . . . . . . . . . . . . . . . . . . . Manual 84 | . 2 . . 3 14 7 . . . . 6 . 3 2 12 . 14 2 . . . . 19 Terminals 61 | . 5 . . 11 26 19 . . . . . . . . . . . . . . . . . Fabricators 16 | . . . . . 4 . . . . . . . 6 . . . . 6 . . . . . Repair Stations 17 | . . . 2 . . 2 . . . . . . 2 . . . . 3 . . . . 8 Recycling Units 1 | . . . . . . . . . . . . . . . . . . . . . . . 1 Scanalyzers 51 | . . . . 8 21 . . . . . 4 . . . . . . 12 . . . . 6 Garrison Access 10 | . . . . . 2 2 . . . . . . 2 . . . 1 . . . . . 3 Terminal Hacks 68 | . 1 . . 6 9 6 . . . . . . . . . . . . 1 1 44 . . Record 37 | . . . . . . . . . . . . . . . . . . . . 1 36 . . Part Schematic 4 | . . . . . . . . . . . . . . . . . . . . . 4 . . Robot Schematic 1 | . . . . . 1 . . . . . . . . . . . . . . . . . . Robot Analysis 4 | . . . . . . . . . . . . . . . . . . . . . 4 . . Prototype ID Bank 7 | . . . . 3 2 2 . . . . . . . . . . . . . . . . . Open Door 1 | . . . . . . . . . . . . . . . . . . . 1 . . . . Terminal Index 4 | . 1 . . 1 1 1 . . . . . . . . . . . . . . . . . Alert Level 1 | . . . . . 1 . . . . . . . . . . . . . . . . . . Unreport Threat 2 | . . . . 1 . 1 . . . . . . . . . . . . . . . . . Locate Traps 4 | . . . . 1 2 1 . . . . . . . . . . . . . . . . . Zone Layout 3 | . . . . . 2 1 . . . . . . . . . . . . . . . . . Fabricator Hacks 6 | . . . . . 2 . . . . . . . 2 . . . . 2 . . . . . Load Schematic 3 | . . . . . 1 . . . . . . . 1 . . . . 1 . . . . . Build 3 | . . . . . 1 . . . . . . . 1 . . . . 1 . . . . . Repair Station Hacks 10 | . . . 2 . . 2 . . . . . . . . . . . 2 . . . . 4 Scan Component 5 | . . . 1 . . 1 . . . . . . . . . . . 1 . . . . 2 Repair 5 | . . . 1 . . 1 . . . . . . . . . . . 1 . . . . 2 Recycling Unit Hacks . | . . . . . . . . . . . . . . . . . . . . . . . . Scanalyzer 39 | . . . . 8 19 . . . . . 2 . . . . . . 6 . . . . 4 Insert Component 20 | . . . . 4 9 . . . . . 1 . . . . . . 3 . . . . 3 Analyze 19 | . . . . 4 10 . . . . . 1 . . . . . . 3 . . . . 1 Garrison Access Hacks 3 | . . . . . . 1 . . . . . . . . . . 1 . . . . . 1 Seal Access 3 | . . . . . . 1 . . . . . . . . . . 1 . . . . . 1 Unauthorized Hacks 8 | . 1 . . 1 4 2 . . . . . . . . . . . . . . . . . Terminals 7 | . 1 . . 1 3 2 . . . . . . . . . . . . . . . . . Botnet 5 | . 1 . . 1 2 1 . . . . . . . . . . . . . . . . . Operators 2 | . . . . . 1 1 . . . . . . . . . . . . . . . . . Fabricators 1 | . . . . . 1 . . . . . . . . . . . . . . . . . . Report 1 | . . . . . 1 . . . . . . . . . . . . . . . . . . Repair Stations . | . . . . . . . . . . . . . . . . . . . . . . . . Recycling Units . | . . . . . . . . . . . . . . . . . . . . . . . . Scanalyzers . | . . . . . . . . . . . . . . . . . . . . . . . . Garrison Access . | . . . . . . . . . . . . . . . . . . . . . . . . Data Cores Recovered 2 | . . . . 1 . 1 . . . . . . . . . . . . . . . . . Used 2 | . . . . 1 . 1 . . . . . . . . . . . . . . . . . Hacking Detections 35 | . 2 . 1 5 7 7 . . . . 1 . 5 . . . . 3 . . . . 4 Full Trace Events 3 | . . . . . 2 1 . . . . . . . . . . . . . . . . . Feedback Events . | . . . . . . . . . . . . . . . . . . . . . . . . Feedback Blocked . | . . . . . . . . . . . . . . . . . . . . . . . . Robot Schematics Acquired 1 | . . . . . 1 . . . . . . . . . . . . . . . . . . Robots Built 3 | . . . . . 3 . . . . . . . . . . . . . . . . . . Matter 219 | . . . . . 219 . . . . . . . . . . . . . . . . . . Time 116 | . . . . . 116 . . . . . . . . . . . . . . . . . . Total Robot Build Rating 9 | . . . . . 9 . . . . . . . . . . . . . . . . . . Part Schematics Acquired 21 | . . . . 4 8 . . . . . 1 . . . . . . 3 . . 4 . 1 Parts Built 2 | . . . . . . . . . . . . . 1 . . . . 1 . . . . . Matter 336 | . . . . . . . . . . . . . 168 . . . . 168 . . . . . Time 126 | . . . . . . . . . . . . . 84 . . . . 42 . . . . . Total Part Build Rating 8 | . . . . . . . . . . . . . 4 . . . . 4 . . . . . Parts Repaired 5 | . . . 1 . . 1 . . . . . . . . . . . 1 . . . . 2 Time 173 | . . . 26 . . 19 . . . . . . . . . . . 22 . . . . 106 Parts Recycled . | . . . . . . . . . . . . . . . . . . . . . . . . Recycled Matter . | . . . . . . . . . . . . . . . . . . . . . . . . Retrieved Matter . | . . . . . . . . . . . . . . . . . . . . . . . . Retrieved Components . | . . . . . . . . . . . . . . . . . . . . . . . . Parts Scanalyzed 18 | . . . . 4 9 . . . . . 1 . . . . . . 3 . . . . 1 Part Schematics Acquired 17 | . . . . 4 8 . . . . . 1 . . . . . . 3 . . . . 1 Parts Damaged . | . . . . . . . . . . . . . . . . . . . . . . . . Bothacking | -11 -10 -10 -9 -8 -7 -6 -6 -6 -6 -5 -5 -5 -5 -5 -5 -5 -5 -4 -4 -4 -4 -3 -3 ------------ Run | Scr Mat Min Mat Mat Fac Fac Low Low Zio Pro Fac Was Fac Ext Cet Arc Hub Fac Upp Upp Zhi Pro Res Used RIF Installer . | . . . . . . . . . . . . . . . . . . . . . . . . Robots Hacked 3 | . . . . . . . . . . . . . . 3 . . . . . . . . . Non-combat 1 | . . . . . . . . . . . . . . 1 . . . . . . . . . Combat . | . . . . . . . . . . . . . . . . . . . . . . . . Robot Hacks Applied 1 | . . . . . . . . . . . . . . 1 . . . . . . . . . parse_system 1 | . . . . . . . . . . . . . . 1 . . . . . . . . . Manual 2 | . . . . . . . . . . . . . . 2 . . . . . . . . . Relay Couplers Released 8 | . . . . . . . . . . . . . . . . . 4 4 . . . . . Machine Destruction 4 | . . . . . . . . . . . . . . . . . 4 . . . . . . Programmers 4 | . . . . . . . . . . . . . . . . . . 4 . . . . . Robots Rewired 1 | . . 1 . . . . . . . . . . . . . . . . . . . . . Allies Hacked 2 | . . . . . . . . . . . . . . . . . . 2 . . . . . Hacks Repelled . | . . . . . . . . . . . . . . . . . . . . . . . . Allies | -11 -10 -10 -9 -8 -7 -6 -6 -6 -6 -5 -5 -5 -5 -5 -5 -5 -5 -4 -4 -4 -4 -3 -3 -------- Run | Scr Mat Min Mat Mat Fac Fac Low Low Zio Pro Fac Was Fac Ext Cet Arc Hub Fac Upp Upp Zhi Pro Res Total Allies 36 | . . 1 . . 3 . . . 4 . 2 . 3 4 1 . 4 4 . . . . 10 Largest Group 4 | . . 1 . . 3 . . . 4 4 2 2 3 3 1 . 3 4 . . . . 4 Highest-Rated Group 309 | . . 8 . . 48 . . . 153 153 170 170 85 251 85 . 210 156 . . . . 309 Highest-Rated Ally 103 | . . 8 . . 16 . . . 41 41 85 85 85 85 85 . 70 39 . . . . 103 Zionite Dispatches 13 | . . . . . . . . . . . 1 . 1 1 2 . 2 1 . . . . 5 Heavy 4 | . . . . . . . . . . . 1 . . 1 . . . . . . . . 2 Light 1 | . . . . . . . . . . . . . . . . . 1 . . . . . . Recon 1 | . . . . . . . . . . . . . . . 1 . . . . . . . . Fire 2 | . . . . . . . . . . . . . 1 . . . . 1 . . . . . Hacker 2 | . . . . . . . . . . . . . . . . . . . . . . . 2 Infowar Resupply 2 | . . . . . . . . . . . . . . . 1 . . . . . . . 1 Hacking Resupply 1 | . . . . . . . . . . . . . . . . . 1 . . . . . . Total Orders 4 | . . 1 . . . . . . . . . . . . 1 . 1 . . . . . 1 DROP 3 | . . . . . . . . . . . . . . . 1 . 1 . . . . . 1 COLLECT 1 | . . 1 . . . . . . . . . . . . . . . . . . . . . Ally Attacks 335 | . . . . . 51 . . . . 33 2 47 11 35 7 . 49 25 . . . . 75 Total Damage 13638 | . . . . . 633 . . . . 2134 99 3052 174 2071 450 . 1052 496 . . . . 3477 Kills 80 | . . . . . 9 . . . . 17 1 4 . 15 2 . 13 4 . . . . 15 Allies Corrupted 2 | . . . . . . . . . . . . . . . . . . 1 . . . . 1 Allies Melted . | . . . . . . . . . . . . . . . . . . . . . . . . Intel | -11 -10 -10 -9 -8 -7 -6 -6 -6 -6 -5 -5 -5 -5 -5 -5 -5 -5 -4 -4 -4 -4 -3 -3 ------- Run | Scr Mat Min Mat Mat Fac Fac Low Low Zio Pro Fac Was Fac Ext Cet Arc Hub Fac Upp Upp Zhi Pro Res Robot Analysis Total 4 | . . . . . . . . . . . . . . . . . . . . . 4 . . Derelict Logs Recovered 9 | . . . . . . . 1 2 1 2 . . . . . . . . 1 2 . . . Drone Launches 2 | . . . . . . . . . . . . . . . . . . . . . . . 2 Drone Recoveries . | . . . . . . . . . . . . . . . . . . . . . . . . Decoded 0b10 Intel 51 | . . . . . . . . . . . 5 . 15 2 1 . 7 21 . . . . . Garrisons 2 | . . . . . . . . . . . . . 1 . . . 1 . . . . . . Patrols 17 | . . . . . . . . . . . 1 . 6 2 1 . 4 3 . . . . . Guards 32 | . . . . . . . . . . . 4 . 8 . . . 2 18 . . . . . Zionite Intel Received 7 | . . . . . . . . . . . 1 . . . 2 . 3 . . . . . 1 Main Access 1 | . . . . . . . . . . . . . . . . . 1 . . . . . . Emergency Access 1 | . . . . . . . . . . . . . . . . . . . . . . . 1 Guard Positions 1 | . . . . . . . . . . . 1 . . . . . . . . . . . . Trap Installations 2 | . . . . . . . . . . . . . . . 1 . 1 . . . . . . Active Garrisons 1 | . . . . . . . . . . . . . . . . . 1 . . . . . . Depthwide Sectors/-1 1 | . . . . . . . . . . . . . . . 1 . . . . . . . . Exploration | -11 -10 -10 -9 -8 -7 -6 -6 -6 -6 -5 -5 -5 -5 -5 -5 -5 -5 -4 -4 -4 -4 -3 -3 ------------- Run | Scr Mat Min Mat Mat Fac Fac Low Low Zio Pro Fac Was Fac Ext Cet Arc Hub Fac Upp Upp Zhi Pro Res Turns Passed 21630 | 45 179 203 219 876 1800 665 467 497 1207 1130 418 310 1150 501 356 460 805 2111 1407 1332 524 967 4001 Spaces Moved 12631 | 33 152 137 218 491 1247 443 386 424 1064 760 228 127 635 265 172 186 384 1051 867 793 297 587 1684 Core 56 | 5 . 6 36 . . . . . . 3 . . . . . . . . . . 6 . . Treads 7703 | . . . . . 366 70 . . . 90 228 127 635 265 172 186 384 1051 867 793 263 587 1619 Legs 64 | . . . . . . . . . . . . . . . . . . . . . . . 64 Wheels 4779 | 28 152 131 182 491 881 373 386 424 1064 667 . . . . . . . . . . . . . Hover 1 | . . . . . . . . . . . . . . . . . . . . . . . 1 Flight 28 | . . . . . . . . . . . . . . . . . . . . . 28 . . Fastest Speed 20 | 50 100 50 50 90 100 105 95 105 105 105 162 160 160 160 160 160 160 145 160 160 20 160 145 Average Speed 137 | 103 100 92 94 97 119 117 104 105 105 113 162 161 160 160 160 160 160 155 160 160 147 160 160 Slowest Speed 600 | 150 100 100 110 100 180 160 105 105 105 600 162 182 160 160 160 160 160 165 160 160 250 160 300 Overloaded Moves 3 | . . . . . . . . . . . . . . . . . . . . . 3 . . Propulsion Burnouts . | . . . . . . . . . . . . . . . . . . . . . . . . Robots Hopped . | . . . . . . . . . . . . . . . . . . . . . . . . Cave-ins Triggered 1 | . . . . . . . . . . . . . . . . . . . . . . . 1 Teleports 1 | . . . . . . . . . . . . . . . . . . . . . . . 1 Exploration Rate (%) 49 | 4 34 29 25 28 37 18 55 61 90 83 6 89 15 45 60 98 40 25 95 77 62 72 39 Regions Visited 23 Branch Regions 13 Pre-discovered Areas 11 | . . . . . . . . 2 1 . . . . . 4 . . . . 1 3 . . Known Exits Taken 17 | . . . . 1 1 1 1 1 1 1 . . 1 1 1 1 1 1 1 1 1 1 . Unknown Exits Taken 4 | 1 1 1 1 . . . . . . . . . . . . . . . . . . . . Scrap Searched 20 | . . . . . . . 1 13 1 2 . . . . . . . . 1 1 . 1 . Spaces Dug 47 | . . . . . 4 7 . . . . 9 . 7 1 . . 2 1 . 1 . 1 14 Terrain Destroyed 702 | . 2 3 . 3 4 7 . 82 . 80 9 . 7 95 24 2 243 4 . 1 . 4 132 Melee 47 | . . . . . 4 7 . . . . 9 . 7 1 . . 2 1 . 1 . 1 14 Projectile 87 | . . . . . . . . . . . . . . . 8 2 7 3 . . . 3 64 AOE 568 | . 2 3 . 3 . . . 82 . 80 . . . 94 16 . 234 . . . . . 54 Terrain Rammed . | . . . . . . . . . . . . . . . . . . . . . . . . Walls Destroyed . | . . . . . . . . . . . . . . . . . . . . . . . . Machines Disabled . | . . . . . . . . . . . . . . . . . . . . . . . . Actions | -11 -10 -10 -9 -8 -7 -6 -6 -6 -6 -5 -5 -5 -5 -5 -5 -5 -5 -4 -4 -4 -4 -3 -3 --------- Run | Scr Mat Min Mat Mat Fac Fac Low Low Zio Pro Fac Was Fac Ext Cet Arc Hub Fac Upp Upp Zhi Pro Res Total 15187 | 40 167 173 228 758 1435 531 417 455 1154 918 260 190 743 310 221 296 489 1356 881 836 369 598 2362 Wait 832 | . 2 8 . 174 69 47 1 4 82 77 13 9 59 3 1 64 7 101 . 14 . 1 96 Move 12609 | 32 151 136 217 490 1246 442 385 423 1063 759 228 126 634 264 171 185 383 1050 866 792 296 586 1684 Hop . | . . . . . . . . . . . . . . . . . . . . . . . . Pick Up 153 | 1 4 1 3 11 15 3 6 4 2 9 4 1 3 1 4 2 8 23 3 4 9 . 32 Fast Attach 218 | 6 2 . 5 7 12 3 . 2 2 6 . 10 7 3 7 5 12 25 2 5 26 . 71 Attach 100 | . . 3 3 2 4 1 4 2 1 7 2 2 1 2 . 5 6 21 . 1 1 . 32 Detach 39 | . . 1 . 1 1 1 . . 1 2 . 4 . 1 . 1 2 6 . . 1 . 17 Swap 96 | 1 . . . 7 7 1 4 4 . 2 2 4 6 4 8 5 8 5 1 . . 4 23 Drop 207 | . 2 1 . 14 18 4 2 4 3 5 2 14 9 2 11 . 12 16 5 7 27 . 49 Fire 353 | . 6 20 . 52 41 . . 6 . 4 . 20 . 19 16 7 26 15 . . . 6 115 Melee 558 | . . . . . 22 29 15 6 . 47 9 . 24 11 3 21 25 94 4 13 9 1 225 Ram . | . . . . . . . . . . . . . . . . . . . . . . . . Kick . | . . . . . . . . . . . . . . . . . . . . . . . . Crush 19 | . . . . . . . . . . . . . . . . 1 . . . . . . 18 Escape Stasis . | . . . . . . . . . . . . . . . . . . . . . . . . Rewire 3 | . . 3 . . . . . . . . . . . . . . . . . . . . . Trap . | . . . . . . . . . . . . . . . . . . . . . . . . Miscellaneous . | . . . . . . . . . . . . . . . . . . . . . . . . Route ------- -11/Scrapyard -10/Materials -10/Mines (discovered 2 exits: *Mat x2) -9/Materials -8/Materials -7/Factory -6/Factory -6/Lower Caves -6/Lower Caves -6/Zion -5/Proximity Caves -5/Factory -5/Waste -5/Factory -5/Extension (discovered 2 exits: *Fac / *Cet) -5/Cetus -5/Archives (discovered 3 exits: *Fac / *Hub x2) -5/Hub_04(d) (discovered 4 exits: *Fac x4) -4/Factory -4/Upper Caves -4/Upper Caves (discovered 2 exits: *Res / *Zhi) -4/Zhirov -3/Proximity Caves -3/Research History --------- Turn | Location | Event 15 | -11/Scrapyard | Discovered new exit (range 16) 46 | -11/Scrapyard | Entered Materials 210 | -10/Materials | Discovered new exit (range 16) 225 | -10/Materials | Entered Mines 311 | -10/Mines | Build established: Mutant 369 | -10/Mines | Discovered new exit (range 15) 402 | -10/Mines | Assembled infested the area 407 | -10/Mines | Assisted by a Guerilla fighting off Assembled 419 | -10/Mines | Core integrity fell below 50% 422 | -10/Mines | Discovered new exit (range 7) 428 | -10/Mines | Entered Materials 428 | -9/Materials | Evolved 2 slots: Utility x1, Weapon x1 447 | -9/Materials | Lost 5 parts (1p2n2w) 524 | -9/Materials | Repaired EM Pulse Gun 634 | -9/Materials | Discovered new exit (range 9) 647 | -9/Materials | Entered another Materials area 647 | -8/Materials | Evolved 2 slots: Utility x1, Weapon x1 833 | -8/Materials | Build established: Skirmisher 1499 | -8/Materials | Discovered new exit (range 15) 1522 | -8/Materials | Identified exit to Factory 1523 | -8/Materials | Entered Factory 1523 | -7/Factory | Evolved 2 slots: Utility x2 1726 | -7/Factory | Local fabrication network quarantined 1747 | -7/Factory | Fabricated G-47 Trooper (x3) 2046 | -7/Factory | Garrison activated, responded to threat 2198 | -7/Factory | Lost 4 parts (1u3w) 2777 | -7/Factory | Build established: Assassin 3268 | -7/Factory | Discovered new exit (range 18) 3321 | -7/Factory | Identified exit to Factory 3323 | -7/Factory | Entered another Factory area 3323 | -6/Factory | Evolved 2 slots: Propulsion x1, Utility x1 3499 | -6/Factory | Repaired Adv. Terrain Scanner 3900 | -6/Factory | Discovered new exit (range 20) 3987 | -6/Factory | Identified exit to Lower Caves 3988 | -6/Factory | Entered Lower Caves 4138 | -6/Lower Caves | Attacked by a faux Warlord 4180 | -6/Lower Caves | Lost 3 parts (2u1w) 4201 | -6/Lower Caves | Encountered a Warlord checkpoint 4207 | -6/Lower Caves | Learned location of 1 exit from Factory 4338 | -6/Lower Caves | Discovered new exit (range 8) 4345 | -6/Lower Caves | Identified exit to Lower Caves 4455 | -6/Lower Caves | Entered another Lower Caves area 4471 | -6/Lower Caves | Encountered a Warlord checkpoint 4651 | -6/Lower Caves | Learned location of Zion (-6) 4771 | -6/Lower Caves | Learned location of Extension (-5) 4842 | -6/Lower Caves | Attracted the attention of an 0b10 outpost 4911 | -6/Lower Caves | Discovered new exit (range 12) 4920 | -6/Lower Caves | Identified exit to Zion 4952 | -6/Lower Caves | Entered Zion 4987 | -6/Zion | Discovered new exit (range 12) 4998 | -6/Zion | Identified exit to Proximity Caves 5052 | -6/Zion | Given the Hacking Drone Bay 5053 | -6/Zion | Found Prototype Device 5053 | -6/Zion | Identified Hacking Drone Bay 5066 | -6/Zion | System corruption cleaned by Quarantine Array 5103 | -6/Zion | Learned 4 Factory zone layouts 5178 | -6/Zion | Acquired unknown access codes intercepted by a Zionite 5421 | -6/Zion | Found CR-A16's Pointy Stick 5482 | -6/Zion | Given A8's code to call for help 5859 | -6/Zion | Imprinted 5861 | -6/Zion | Declared Zion's savior 6159 | -6/Zion | Entered Proximity Caves 6159 | -5/Proximity Caves | Accompanied by 4 allies 6528 | -5/Proximity Caves | Received a Behemoth hack from an annoying Tinkerer 6799 | -5/Proximity Caves | Identified exit to Factory 6914 | -5/Proximity Caves | Learned Factory terminal intel 6987 | -5/Proximity Caves | Attracted the attention of an 0b10 base 7091 | -5/Proximity Caves | Core integrity fell below 50% 7104 | -5/Proximity Caves | Lost 10 parts (1p2n4u3w) 7289 | -5/Proximity Caves | Entered Factory 7289 | -5/Factory | Evolved 2 slots: Power x1, Propulsion x1 7290 | -5/Factory | Identified exit to Factory 7292 | -5/Factory | Loaded intel: 22 terminal locations 7379 | -5/Factory | Zion Heavy squad teleported in 7388 | -5/Factory | Build established: Scavenger-Mutant 7554 | -5/Factory | Retrieved Zion intel report: Guard Positions 7707 | -5/Factory | Sucked down chute 7707 | -5/Factory | Entered Waste 7722 | -5/Waste | EMP discharged 7751 | -5/Waste | Spotted C-40 Crusher 7773 | -5/Waste | Destroyed C-40 Crusher 7781 | -5/Waste | Found Damper Plating 7792 | -5/Waste | Allies destroyed C-40 Crusher 7792 | -5/Waste | Spotted C-40 Crusher 7795 | -5/Waste | 2 allies followed down the chute 7809 | -5/Waste | Allies destroyed C-40 Crusher 7822 | -5/Waste | EMP discharged 7831 | -5/Waste | Spotted C-40 Crusher 7852 | -5/Waste | Crushed by Compactor (0 parts destroyed, 1 dropped) 7857 | -5/Waste | Destroyed C-40 Crusher 7860 | -5/Waste | Spotted C-40 Crusher 7876 | -5/Waste | Allies destroyed C-40 Crusher 7901 | -5/Waste | Found Prototype Protection 7901 | -5/Waste | Identified Zio. Weapon Casing 7922 | -5/Waste | EMP discharged 7922 | -5/Waste | System corruption reached 10% 8001 | -5/Waste | Discovered new exit (range 11) 8016 | -5/Waste | Identified exit to Factory 8017 | -5/Waste | Entered Factory 8017 | -5/Factory | Accompanied by 1 ally 8272 | -5/Factory | Fabricated Lrn. Sensor Array? 8350 | -5/Factory | Found Zio. Weapon Casing 8421 | -5/Factory | Local fabrication network quarantined 8880 | -5/Factory | Found Prototype Launcher 8880 | -5/Factory | Identified Mni. Smartbomb Launcher 8888 | -5/Factory | Found Mni. Smartbomb Launcher 9019 | -5/Factory | Zion Fire squad teleported in 9143 | -5/Factory | Discovered new exit (range 16) 9165 | -5/Factory | Identified exit to Extension 9167 | -5/Factory | Entered Extension 9340 | -5/Extension | Spotted B-75 Beast 9343 | -5/Extension | Befriended a Behemoth using the annoying Tinkerer's hack 9351 | -5/Extension | Spotted B-75 Beast 9357 | -5/Extension | Befriended a Behemoth using the annoying Tinkerer's hack 9415 | -5/Extension | Zion Heavy squad teleported in 9467 | -5/Extension | Disrupted transfer network 9636 | -5/Extension | Discovered exit to Factory (range 16) 9638 | -5/Extension | Discovered new exit (range 15) 9664 | -5/Extension | Disrupted transfer network 9667 | -5/Extension | Identified exit to Cetus 9668 | -5/Extension | Entered Cetus 9668 | -5/Cetus | Accompanied by 1 ally 9691 | -5/Cetus | Spotted Cetus Guard 9691 | -5/Cetus | Spotted Cetus Guard 9700 | -5/Cetus | Spotted Cetus Guard 9700 | -5/Cetus | Destroyed Cetus Guard 9700 | -5/Cetus | Spotted Cetus Guard 9702 | -5/Cetus | Destroyed Cetus Guard 9703 | -5/Cetus | Destroyed Cetus Guard 9705 | -5/Cetus | Destroyed Cetus Guard 9882 | -5/Cetus | Retrieved Zion intel report: Trap Installations 9916 | -5/Cetus | Retrieved Zion intel report: Depthwide Sectors/-1 9917 | -5/Cetus | Zion Recon squad teleported in 9925 | -5/Cetus | Zion Infowar Resupply teleported in 9984 | -5/Cetus | Discovered new exit (range 15) 10006 | -5/Cetus | Identified exit to Archives 10024 | -5/Cetus | Entered Archives 10215 | -5/Archives | Unable to access archive contents 10222 | -5/Archives | Discovered exit to Factory (range 13) 10244 | -5/Archives | Unable to access archive contents 10334 | -5/Archives | Lost 4 parts (2u2w) 10404 | -5/Archives | Discovered new exit (range 15) 10428 | -5/Archives | Identified exit to Hub_04(d) 10461 | -5/Archives | Discovered exit to Hub_04(d) (range 13) 10484 | -5/Archives | Entered Hub_04(d) 10533 | -5/Hub_04(d) | Zion Light squad teleported in 10631 | -5/Hub_04(d) | Retrieved Zion intel report: Main Access 10687 | -5/Hub_04(d) | Disrupted transfer network 10801 | -5/Hub_04(d) | Found Zio. Weapon Casing 10918 | -5/Hub_04(d) | Retrieved Zion intel report: Trap Installations 10934 | -5/Hub_04(d) | Retrieved Zion intel report: Active Garrisons 10935 | -5/Hub_04(d) | Zion Hacking Resupply teleported in 10995 | -5/Hub_04(d) | Network Hub disabled 11084 | -5/Hub_04(d) | First assault squad dispatched 11088 | -5/Hub_04(d) | Spotted Lightning 11092 | -5/Hub_04(d) | Spotted Lightning 11095 | -5/Hub_04(d) | Spotted Lightning 11106 | -5/Hub_04(d) | Destroyed Lightning 11106 | -5/Hub_04(d) | Destroyed Lightning 11127 | -5/Hub_04(d) | Core integrity fell below 50% 11159 | -5/Hub_04(d) | System corruption reached 30% 11164 | -5/Hub_04(d) | Destroyed Lightning 11182 | -5/Hub_04(d) | Lost 11 parts (2p1n4u4w) 11265 | -5/Hub_04(d) | Spotted Lightning 11270 | -5/Hub_04(d) | Spotted Lightning 11270 | -5/Hub_04(d) | Spotted Lightning 11289 | -5/Hub_04(d) | Entered Factory 11289 | -4/Factory | Evolved 2 slots: Utility x1, Weapon x1 11319 | -4/Factory | Lost 4 parts (1p1n1u1w) 11778 | -4/Factory | Lost 6 parts (1p2n3u) 11998 | -4/Factory | Zion Fire squad teleported in 12006 | -4/Factory | P-70 Sage assimilated allied 15-6PG(i) 12564 | -4/Factory | Terminal network hard line cut 12638 | -4/Factory | P-70 Sage assimilated allied XK-NUG(i) 12860 | -4/Factory | System corruption reached 10% 13031 | -4/Factory | Spotted B-86 Titan 13183 | -4/Factory | Destroyed B-86 Titan 13204 | -4/Factory | Lost 4 parts (1p1n2u) 13245 | -4/Factory | Fabricated Lrn. Sensor Array (x1) 13372 | -4/Factory | Repaired Imp. Medium Armor Plating? 13388 | -4/Factory | Discovered new exit (range 6) 13396 | -4/Factory | Identified exit to Upper Caves 13400 | -4/Factory | Entered Upper Caves 13684 | -4/Upper Caves | Build established: Scavenger-Tank 14162 | -4/Upper Caves | Build established: Scavenger-Assassin 14407 | -4/Upper Caves | Learned Research security intel 14493 | -4/Upper Caves | Discovered new exit (range 10) 14508 | -4/Upper Caves | Identified exit to Upper Caves 14807 | -4/Upper Caves | Entered another Upper Caves area 14903 | -4/Upper Caves | Discovered new exit (range 15) 14926 | -4/Upper Caves | Identified exit to Research 15404 | -4/Upper Caves | Learned 4 Research zone layouts 15506 | -4/Upper Caves | Found Alien Artifact 16097 | -4/Upper Caves | Discovered new exit (range 10) 16137 | -4/Upper Caves | Identified exit to Zhirov 16139 | -4/Upper Caves | Entered Zhirov 16139 | -4/Zhirov | Discovered new exit (range 3) 16144 | -4/Zhirov | Identified exit to Proximity Caves 16171 | -4/Zhirov | Met Zhirov 16200 | -4/Zhirov | Learned location of Quarantine (-3) 16200 | -4/Zhirov | Learned location of Testing (-2) 16200 | -4/Zhirov | Learned location of Command (-1) 16231 | -4/Zhirov | Zhirov requested help retrieving the SGEMP Prototype 16263 | -4/Zhirov | Found Alien Artifact 16263 | -4/Zhirov | Identified Integrated Reactor 16263 | -4/Zhirov | Installed Integrated Reactor, increased core energy generation (+10) 16289 | -4/Zhirov | Found Alien Artifact 16663 | -4/Zhirov | Entered Proximity Caves 16737 | -3/Proximity Caves | Build established: Assassin 17577 | -3/Proximity Caves | Discovered exit to Research (range 8) 17630 | -3/Proximity Caves | Entered Research 17630 | -3/Research | Evolved 2 slots: Propulsion x2 17681 | -3/Research | Zion Heavy squad teleported in 17792 | -3/Research | Garrison activated, responded to threat 18031 | -3/Research | Build established: Scavenger-Tank 18077 | -3/Research | Identified Dimensional Node Initializer 18090 | -3/Research | Zion Heavy squad teleported in 18409 | -3/Research | Found Prototype Processor 18409 | -3/Research | Identified Spectral Analyzer 18428 | -3/Research | Found Prototype Device 18428 | -3/Research | Identified Exp. Focal Shield 18453 | -3/Research | Zion Hacker squad teleported in 18487 | -3/Research | Found Enh. Force Lance 18651 | -3/Research | Lost 6 parts (1n5w) 18704 | -3/Research | Destroyed 7 combat bots 18848 | -3/Research | Zion Infowar Resupply teleported in 18882 | -3/Research | Zion Hacker squad teleported in 18971 | -3/Research | System corruption reached 10% 18981 | -3/Research | Build established: Scavenger-Assassin 19020 | -3/Research | Lost 4 parts (1p1n2w) 19095 | -3/Research | Retrieved Zion intel report: Emergency Access 19119 | -3/Research | Terminal network hard line cut 19188 | -3/Research | Crushed by falling debris 19219 | -3/Research | Lost 4 parts (2u2w) 19380 | -3/Research | First assault squad dispatched 19574 | -3/Research | Repaired Enh. Force Lance? 19724 | -3/Research | Repaired Hvy. Armor Plating? 19775 | -3/Research | System corruption reached 30% 19808 | -3/Research | Lost 8 parts (3n1u4w) 19856 | -3/Research | Core integrity fell below 50% 19909 | -3/Research | Lost 5 parts (2n3u) 19993 | -3/Research | Identified Transdimensional Reconstructor 20107 | -3/Research | Lost 4 parts (1p1u2w) 20560 | -3/Research | Garrison activated, responded to threat 21020 | -3/Research | Warped through subspace 21051 | -3/Research | Lost 5 parts (2p3u) 21075 | -3/Research | Core integrity fell below 20% 21109 | -3/Research | Lost 3 parts (1n2w) 21152 | -3/Research | Lost 3 parts (2n1u) 21549 | -3/Research | Lost 11 parts (2n4u5w) 21631 | -3/Research | Destroyed by P-80 Master with Gamma Rifle Last Messages --------------- 21544_ Acquired Rnf. Antimatter Reactor. 21546_ RPGG7Y|U:XOFBP, UVEELRGWYO:MC%5CXQ<&2#F 21546_ K-01 Serf collects debris. 21547_ Acquired Med. Treads. 21548_ K-01 Serf collects debris. 21549_ Dropped Mic. Fission Core. 21550_ Acquired 10 matter. 21551_ K-01 Serf collects debris. 21556_ Acquired Lgt. Antimatter Reactor. 21556_ K-01 Serf collects debris. 21557_ Acquired 10 matter. 21557_ K-01 Serf collects debris. 21561_ System corrupted: Matter fused (-10). 21561_ K-01 Serf collects debris. 21565_ R-10 Processor collects Unknown Energy Gun. 21576_ System corrupted: Energy discharge (-102). 21591_ System corrupted: Heat flow error (+219). 21602_ Acquired Prototype Device. 21602_ Identified Exp. Coolant Injector. 21620_ Slammed into G-73 Enforcer. Map ----- +----------------------------------------------------+ | # # #?????????# # """" | | #?###### #?????????# #= """" | | #??????# #????????###############%= | | #??????# #????????# #[ [ | | #??????# #????????# # *%! | | ########+##???????# # = ######+###### | | ## #???????# # #* ###? | | ## #???????# + + + +? | | ## #???????# ##"### # #? | | ## #???????########/######## ## ###? | | ## #?????########" p##??????# # ##?? | | ## #?????# = =%%=;#??????? # #??? | | ## #?????# +% ##???????## +?+? | | ## #?????# % ;! #?????????#= #??? | | ## #?????####""%;# ##????????# #?? | | ######"##############%##= #????????##### ##?? | | #????????## #######??? | | % #?????????##?????????? | | ######################## #????????????????????? | | ???????????????????????# #????????????????????? | | ???????????????????????# #????????????????????? | | ????????????????######## #????????????????????? | | ????????????????# #????????????????????? | | ??????????####### #????????????????????? | | ??????????# %% #????????????????????? | | ??????????# w@%%#????????????????????? | | ??????????+ ! ###g###########?????????????? | | ??????????# """ # #?????????????? | | ?????????## """ # #?????????????? | | ?????????# """ ! + #?????????????? | | ?????????# # #?????????????? | | ?????????# # #?????????????? | | ?????????# # #?????????????? | | ?????????# ###+##+###############?????????????? | | ?????????# ???????????????????????????????????? | | ?????????# ????????????????????????????????????? | | ?????????# ?????????????????????????????????????? | | ?????????# ??????????????????????????????????????? | | ?????????# ??????????????????????????????????????? | | ?????????#???????????????????????????????????????? | | ?????????????????????????????????????????????????? | | ?????????????????????????????????????????????????? | | ?????????????????????????????????????????????????? | | ?????????????????????????????????????????????????? | | ?????????????????????????????????????????????????? | | ?????????????????????????????????????????????????? | | ?????????????????????????????????????????????????? | | ?????????????????????????????????????????????????? | | ?????????????????????????????????????????????????? | | ?????????????????????????????????????????????????? | +----------------------------------------------------+ Best States ------------- Heat Dissipation 103 Coolant Potential 120 Energy Generation 65 Energy Capacity 580 Matter Stores 450 Matter Capacity 450 Sight Range 24 Robot Scan Range 20 Terrain Scan Range 24 Terrain Scan Density 210 Power Amplification 30 Armor Coverage 1200 Resistance: TH 25 Resistance: EM 90 Propulsion Shielding 33 Utility Shielding 90 Weapon Shielding 100 Melee Speed Boost 30 Phase Shifting 10 Evasion (%) 50 Melee Accuracy 8 Core Analysis 10 Armor Integrity Analysis 66 Recoil Reduction 6 Energy Filtering 30 Kinecelleration 30 Defensive Hacking 10 Item Schematics ----------------- Lrn. Sensor Array | -8/Materials | Scanalyzed Adv. Signal Interpreter | -8/Materials | Scanalyzed Adv. Visual Processing Unit | -8/Materials | Scanalyzed Coolant Injector | -8/Materials | Scanalyzed Adv. Terrain Scan Processor | -7/Factory | Scanalyzed Chainsword | -7/Factory | Scanalyzed Shock Bomb Launcher | -7/Factory | Scanalyzed Spear | -7/Factory | Scanalyzed Cld. Ion Engine | -7/Factory | Scanalyzed Imp. Deuterium Engine | -7/Factory | Scanalyzed Gatling Laser | -7/Factory | Scanalyzed Adv. Terrain Scanner | -7/Factory | Scanalyzed Med. Treads | -5/Factory | Scanalyzed Lyr. Medium Armor Plating | -4/Factory | Scanalyzed Imp. Remote Datajack | -4/Factory | Scanalyzed Energy Well | -4/Factory | Scanalyzed Assault Drone Bay | -4/Zhirov | Free Exp. Heat Sink | -4/Zhirov | Free Exp. Optical Array | -4/Zhirov | Free Imp. Arc Thrower | -4/Zhirov | Free Lgt. Antimatter Reactor | -3/Research | Scanalyzed Robot Schematics ------------------ G-47 Trooper | -7/Factory | Hacked Fabricated ------------ G-47 Trooper | x3 | -7/Factory Lrn. Sensor Array | x1 | -5/Factory Lrn. Sensor Array | x1 | -4/Factory Alien Tech Used ----------------- Integrated Reactor Transdimensional Reconstructor Achievements -------------- Generalissimo Woof! Challenges ------------ None Game ------ Seed HardlightExplosiveShielding Manual? 0 Play Time 05:12:23 Cumulative 166.1 hours Start 2021.04.02 @ 21:57:24 End 2021.04.09 @ 18:50:26 Sessions 11 Manual Loads 0 Difficulty Rogue Special Mode None Game No. 80 Rogue 80 Adventurer 0 Explorer 0 Win Type - Total 5 Types 4/0/1/0/0/0/0/0/0 Lore% 67 Gallery% 75 Achievement% 57 Wizard Run 0 Options --------- ASCII 0 Keyboard 1 Movement Numpad Keybinds 0 Fullscreen 2 Font 18/SmallcapsGlow Map View 76x50 Tactical HUD 1 Map Filters NONE Filters NONE Steam 1 RUN: c22b312f-045e-429b-bd3b-96af933cb152